[Event "Summer Prague Open-A 2022"]
[Site "Prague"]
[Date "2022.08.11"]
[Round "8.20"]
[White "Santagati, Alessandro"]
[Black "Soural, Jan"]
[Result "1/2-1/2"]
[ECO "B22"]
[WhiteElo "2299"]
[BlackElo "2119"]
[Annotator "TA"]
[PlyCount "60"]
[EventDate "2022.08.05"]
[EventType "swiss"]
[EventCountry "CZE"]
[SourceTitle "playchess.com"]
[Source "ChessBase"]
[SourceQuality "1"]
[TimeControl "40/5400+30:1800+30"]

{[%evp 12,60,26,25,39,29,49,18,4,-15,-15,-19,-11,-19,-10,-24,-12,-79,-76,-67,-43,-74,-71,-104,-102,-168,-151,-130,-137,-292,-18,-14,-14,-10,-9,-11,-10,-10,-10,-11,-11,-67,0,-11,0,-62,0,-5,0,-63,0]} 1. e4 {[%emt 0:00:03]} c5 {[%emt 0:00:07]} 2. c3 {[%emt 0:00:03]} d5 {[%emt 0:00:57]} 3. exd5 {[%emt 0:00:08]} Qxd5 {[%emt 0:00:05]} 4. d4 {[%emt 0:00:06]} g6 {[%emt 0:00:04]} 5. Nf3 {[%emt 0:01:24]} Bg7 {[%emt 0:00:05]} 6. Na3 {[%emt 0:01:29]} Nf6 {[%emt 0:03:00][%cal Bg8f6,Bf6g4,Bg4e3,Be3d1][%mdl 32]} 7. Bc4 {[%emt 0:10:35]} Qe4+ {[%emt 0:00:58] B22: Sicilian: 2 c3.} 8. Be3 {[%emt 0:00:19][%cal Oc4f7] Threatens to win with Bxf7+!} O-O {[%emt 0:00:30]} 9. dxc5 {[%emt 0:02:17]} Ng4 $1 {[%emt 0:08:01] The position is equal.} 10. Bd5 {[%emt 0:04:53] [#]} Nxe3 $1 {[%emt 0:01:37]} 11. Bxe4 {[%emt 0:00:28]} Nxd1 {[%emt 0:00:05]} 12. Rxd1 {[%emt 0:00:12]} Na6 $1 {[%emt 0:04:23][%cal Bb8a6,Ba6c5,Bc5e4,Be4c3][%mdl 32]} 13. c6 {[%emt 0:01:59]} bxc6 {[%emt 0:00:09] next ...Rb8 is good for Black.} 14. Bxc6 {[%emt 0:00:07]} (14. Nd4 $1 $11 {remains equal.}) 14... Rb8 $17 {[%emt 0:00:07] [#]} 15. Rd2 $146 {[%emt 0:04:02]} ({Predecessor:} 15. Nc4 Nc5 16. Rd5 Ne4 17. Ra5 Bxc3+ 18. bxc3 Rb1+ 19. Ke2 Nxc3+ 20. Kd2 Rxh1 21. Kxc3 {½-½ (48) Rasik,V (2467)-Vykouk,J (2424) Ostrava 2017}) 15... Bf5 {[%emt 0:37:03][%mdl 1024] Black has compensation.} 16. Bb5 {[%emt 0:08:14]} Nc5 {[%emt 0:00:08]} 17. O-O {[%emt 0:11:11] [#]} Ne4 $1 {[%emt 0:04:15]} 18. Rd5 {[%emt 0:11:31]} (18. Re2 $17 {keeps fighting.}) 18... a6 {[%emt 0:02:52]} 19. Bxa6 {[%emt 0:19:29]} Rxb2 {[%emt 0:00:37]} 20. Nb1 $2 {[%emt 0:09:39]} (20. Bc4 $17) 20... Rxb1 $2 {[%emt 0:18:02]} 21. Rxb1 $11 {[%emt 0:01:05]} Nxc3 {[%emt 0:00:04]} 22. Rxf5 {[%emt 0:03:32][%cal Of5b5] Strongly threatening Rfb5!} gxf5 {[%emt 0:02:15]} 23. Rb7 {[%emt 0:01:37]} e6 {[%emt 0:00:57]} 24. Rb2 {[%emt 0:05:29]} Ra8 {[%emt 0:06:17]} 25. Bc4 {[%emt 0:00:40]} Rc8 {[%emt 0:00:17]} 26. Bf1 {[%emt 0:01:14]} (26. Ba6 $11 Ra8 27. Bc4) 26... Ra8 {[%emt 0:00:34]} ({Black should try} 26... Ne4 $15 27. Re2 Rc3) 27. Bc4 $1 {[%emt 0:00:06]} Rc8 {[%emt 0:00:54]} (27... Na4 $11 28. Rc2 Nc3) 28. Bf1 $15 {[%emt 0:01:10]} Ra8 {[%emt 0:00:36]} (28... Ne4 $15 29. Re2 Rc3) 29. Bc4 $1 $11 {[%emt 0:00:22]} Rc8 {[%emt 0:00:04]} ({Better is} 29... Bf6 $11) 30. Bf1 $15 {[%emt 0:00:26]} Ra8 {[%emt 0:00:04] Weighted Error Value: White=0.20 (precise) /Black=0.33} (30... Ne4 $15 31. Re2 Rc3) 1/2-1/2

[Event "Summer Prague Open-A 2022"]
[Site "Prague"]
[Date "2022.08.11"]
[Round "8.21"]
[White "Karas, Marek"]
[Black "Vecera, Dominik"]
[Result "1-0"]
[ECO "A00"]
[WhiteElo "2286"]
[BlackElo "2066"]
[Annotator "TA"]
[PlyCount "61"]
[EventDate "2022.08.05"]
[EventType "swiss"]
[EventCountry "CZE"]
[SourceTitle "playchess.com"]
[Source "ChessBase"]
[SourceQuality "1"]
[TimeControl "40/5400+30:1800+30"]

{[%evp 13,61,9,13,0,16,32,47,45,47,19,31,19,46,12,0,-22,26,-33,3,0,11,16,7,2,31,-99,-37,-61,-66,-47,-40,-97,58,62,181,181,478,477,491,475,490,472,1169,1169,1029,684,1000,974,981,955]} 1. b4 {[%emt 0:00:04]} Nf6 {[%emt 0:04:29]} 2. Nf3 {[%emt 0:00:43]} g6 {[%emt 0:02:42]} 3. c4 {[%emt 0:00:12]} Bg7 {[%emt 0:00:12]} 4. Bb2 {[%emt 0:00:06]} O-O {[%emt 0:01:44]} 5. g3 {[%emt 0:00:25]} d6 {[%emt 0:13:49]} 6. Bg2 {[%emt 0:00:45]} e5 {[%emt 0:01:09]} 7. d3 {[%emt 0:05:24]} Nc6 {[%emt 0:01:16]} 8. Qb3 {[%emt 0:03:56] [#] A15: English Opening: 1...Nf6.} (8. b5 $5 {[%cal Rb5c6]} Nb8 9. Nbd2 $11) 8... a5 $146 {[%emt 0:08:47]} ({Predecessor:} 8... h6 9. Nbd2 Be6 10. b5 Ne7 11. O-O Qd7 12. a4 Bh3 13. c5 Bxg2 14. Kxg2 Nh5 15. cxd6 cxd6 {0-1 (44) Jazdanovs,A (1889)-Gucaga,A (1781) Kouty nad Desnou 2015}) 9. b5 {[%emt 0:04:16]} Ne7 {[%emt 0:00:14]} 10. Nc3 {[%emt 0:01:03] White is slightly better.} Nd7 {[%emt 0:10:05]} 11. Nd2 {[%emt 0:02:41]} Rb8 {[%emt 0:03:20]} 12. h4 {[%emt 0:07:42]} b6 {[%emt 0:16:59]} 13. Nde4 {[%emt 0:06:57]} Bb7 {[%emt 0:03:31][%cal Oa5a4]} 14. Rh2 {[%emt 0:03:38]} h6 {[%emt 0:10:24]} (14... Nf5 {feels stronger.}) 15. O-O-O {[%emt 0:04:19]} (15. h5 $11) 15... Kh8 {[%emt 0:02:27]} (15... f5 $5 {[%cal Rf5e4]} 16. Nd2 (16. c5+ d5 $15) 16... Bxg2 17. Rxg2 Nc5 $15) 16. Kb1 {[%emt 0:05:03]} f5 {[%emt 0:01:38]} 17. Nd2 {[%emt 0:00:12]} Nc5 {[%emt 0:02:21]} 18. Qc2 {[%emt 0:00:13]} d5 {[%emt 0:01:30]} 19. Ba3 {[%emt 0:06:51] [#]} (19. Nxd5 $14 {stays ahead.} Nxd5 20. cxd5) 19... d4 {[%emt 0:09:47]} ({Black should try} 19... c6 $1 $17 20. bxc6 Bxc6) 20. Na4 {[%emt 0:02:08]} Bxg2 $1 {[%emt 0:01:33]} 21. Rxg2 {[%emt 0:06:40]} c6 {[%emt 0:00:06] Threatens to win with ...cxb5.} 22. bxc6 {[%emt 0:02:36]} (22. Bxc5 $15 bxc5 23. b6) 22... Nxa4 $2 {[%emt 0:02:07]} (22... Nxc6 $17 {[%cal Oe5e4]} 23. h5 g5) 23. Qxa4 $14 {[%emt 0:01:47]} b5 {[%emt 0:00:28]} (23... Rf6 $14) 24. cxb5 $18 {[%emt 0:00:14]} Qd5 $2 {[%emt 0:01:09] [#]} (24... Nxc6 25. Bxf8 Bxf8) 25. Bxe7 $1 {[%emt 0:01:15] White is clearly winning.} Rxb5+ {[%emt 0:00:12]} (25... Rfe8 26. c7) 26. Nb3 {[%emt 0:00:45]} Rc8 {[%emt 0:00:59]} 27. Rc1 {[%emt 0:03:57]} Rxb3+ {[%emt 0:00:23]} (27... Rxc6 $142 28. Rxc6 Qxc6) 28. Qxb3 {[%emt 0:00:12]} Qxg2 {[%emt 0:00:04]} 29. c7 {[%emt 0:00:52]} Qa8 {[%emt 0:00:30]} 30. Bd6 {[%emt 0:00:11]} e4 {[%emt 0:00:14]} 31. Qb8 {[%emt 0:00:45] Weighted Error Value: White=0.49/Black=0.50} 1-0

[Event "Summer Prague Open-A 2022"]
[Site "Prague"]
[Date "2022.08.11"]
[Round "8.22"]
[White "Ali, Abdulaziz"]
[Black "Mannion, Stephen R"]
[Result "1/2-1/2"]
[ECO "C97"]
[WhiteElo "1930"]
[BlackElo "2232"]
[Annotator "TA"]
[PlyCount "71"]
[EventDate "2022.08.05"]
[EventType "swiss"]
[EventCountry "CZE"]
[SourceTitle "playchess.com"]
[Source "ChessBase"]
[SourceQuality "1"]
[TimeControl "40/5400+30:1800+30"]

{[%evp 27,71,6,9,-4,35,24,40,30,50,29,58,-139,-83,-100,-16,-34,0,-181,-181,-157,-68,-145,-143,-152,-81,-128,-78,-83,-72,-79,0,0,0,0,0,-8,0,0,15,0,54,52,56,40,47,50]} 1. e4 {[%emt 0:00:02]} e5 {[%emt 0:00:05]} 2. Nf3 {[%emt 0:00:05]} Nc6 {[%emt 0:00:05]} 3. Bb5 {[%emt 0:00:06][%cal Bf1b5,Bb5a4,Ba4b3][%mdl 32]} a6 {[%emt 0:00:06]} 4. Ba4 {[%emt 0:00:04]} Nf6 {[%emt 0:00:07]} 5. O-O {[%emt 0:00:06]} Be7 {[%emt 0:00:07]} 6. Re1 {[%emt 0:00:06]} b5 {[%emt 0:00:12]} 7. Bb3 {[%emt 0:00:06]} d6 {[%emt 0:00:10]} 8. c3 {[%emt 0:00:07]} O-O {[%emt 0:00:09]} 9. h3 {[%emt 0:00:13]} Na5 {[%emt 0:00:09]} 10. Bc2 {[%emt 0:00:06]} c5 {[%emt 0:00:05]} 11. d4 {[%emt 0:00:08]} Qc7 {[%emt 0:00:13]} 12. d5 {[%emt 0:00:23]} Bd7 {[%emt 0:00:21]} 13. Nbd2 {[%emt 0:01:17][%cal Bb1d2,Bd2f1,Bf1g3][%mdl 32]} c4 {[%emt 0:01:55] 13...g6 is not played anymore.} 14. Nf1 {[%emt 0:00:53]} Nb7 {[%emt 0:00:49]} 15. g4 {[%emt 0:12:19] C97: Closed Ruy Lopez: Chigorin Defence: 11 d4 Qc7, sidelines.} Ne8 {[%emt 0:07:43]} 16. Ng3 {[%emt 0:03:24]} g6 {[%emt 0:00:09] [#]} 17. Kg2 $146 {[%emt 0:13:12]} ({Predecessor:} 17. Nh2 Ng7 18. f4 exf4 19. Bxf4 f6 20. Nf3 Nd8 21. Kg2 Nf7 22. Qd2 Ne5 23. Bh6 {½-½ (42) Tazbir,M (2521)-Postny,E (2611) Germany 2017}) 17... Ng7 {[%emt 0:06:44]} 18. Bh6 {[%emt 0:05:31]} f6 {[%emt 0:02:36]} 19. g5 $2 {[%emt 0:09:31] [#]} (19. Nd2 $14 {stays ahead.}) 19... Qc8 {[%emt 0:02:03]} (19... Rae8 $142 20. b4 fxg5 21. Nxg5 Nd8) 20. Rh1 $17 {[%emt 0:00:25]} Nd8 {[%emt 0:03:23]} ({Black should try} 20... a5 $17) 21. gxf6 {[%emt 0:07:51]} Bxf6 {[%emt 0:00:23]} 22. Bg5 $2 {[%emt 0:00:07]} (22. Qd2 $11) 22... Bxg5 $19 {[%emt 0:00:43]} 23. Nxg5 {[%emt 0:00:05]} Nf7 {[%emt 0:00:10]} ({Not} 23... Qc5 24. Qd2 $15) (23... Nb7 $17 {White must now prevent ...Qd8.} 24. Qe2 Qc5) 24. Nxf7 {[%emt 0:00:34]} (24. Nf3 $15) 24... Rxf7 $17 {[%emt 0:00:09]} 25. Qd2 {[%emt 0:02:57]} Rf4 {[%emt 0:05:00]} (25... Qd8 $142 {aiming for ...Qh4.} 26. Rh2 Qh4) 26. Rh2 {[%emt 0:01:44]} (26. a4 $142) 26... Rh4 {[%emt 0:11:46]} (26... Qb7 $142 27. Bd1 Raf8) 27. Rah1 {[%emt 0:00:57]} Qd8 {[%emt 0:00:14]} 28. Bd1 {[%emt 0:01:25]} h5 {[%emt 0:03:08]} ({Black should play} 28... Qe7 $17) 29. Qe3 $11 {[%emt 0:07:35]} Qf6 {[%emt 0:21:06]} 30. Nf1 {[%emt 0:06:46]} Rf8 {[%emt 0:04:31][%cal Oh4e4] [#] And now ...Rxe4! would win.} 31. Nd2 {[%emt 0:01:10]} Rf4 {[%emt 0:10:36][%cal Rf4f2]} 32. Kf1 {[%emt 0:00:44]} Kh7 {[%emt 0:05:44]} 33. Ke1 {[%emt 0:00:33]} Kg8 {[%emt 0:07:32]} (33... a5 $11) 34. Rg1 $14 {[%emt 0:00:37] White is slightly better.} Kh7 {[%emt 0:02:55]} 35. Rhg2 {[%emt 0:01:29]} Be8 {[%emt 0:00:02]} 36. Be2 {[%emt 0:03:19] Black had all chances to win.  Weighted Error Value: White=0.41/Black=0.36} 1/2-1/2

[Event "Summer Prague Open-A 2022"]
[Site "Prague"]
[Date "2022.08.11"]
[Round "8.23"]
[White "Brylski, Pawel"]
[Black "Bruchmann, Stephan"]
[Result "1/2-1/2"]
[ECO "B10"]
[WhiteElo "1914"]
[BlackElo "2226"]
[Annotator "TA"]
[PlyCount "48"]
[EventDate "2022.08.05"]
[EventType "swiss"]
[EventCountry "CZE"]
[SourceTitle "playchess.com"]
[Source "ChessBase"]
[SourceQuality "1"]
[TimeControl "40/5400+30:1800+30"]

{[%evp 9,48,16,12,7,24,24,24,23,27,19,23,23,47,38,39,38,47,20,36,-9,48,44,45,42,48,43,73,72,114,72,77,63,60,64,129,146,176,150,212,146,145]} 1. e4 {[%emt 0:00:06]} c6 {[%emt 0:00:17]} 2. Nf3 {[%emt 0:00:19]} d5 {[%emt 0:00:31]} 3. exd5 {[%emt 0:00:06]} cxd5 {[%emt 0:00:06]} 4. Ne5 {[%emt 0:00:08]} Nf6 {[%emt 0:01:39]} 5. d4 {[%emt 0:00:40]} g6 {[%emt 0:00:27]} 6. Bb5+ {[%emt 0:09:53] B10: Caro-Kann: 2 d3 and 2 c4.} Bd7 {[%emt 0:00:27]} 7. Nxd7 {[%emt 0:00:27]} Nbxd7 {[%emt 0:00:04]} 8. O-O {[%emt 0:00:20] White has an edge.} Bg7 {[%emt 0:00:03]} 9. c3 {[%emt 0:01:25]} O-O {[%emt 0:00:07]} 10. Re1 {[%emt 0:00:38]} e6 {[%emt 0:00:28]} 11. Nd2 {[%emt 0:02:46]} a6 {[%emt 0:01:21]} 12. Bd3 {[%emt 0:02:15]} b5 {[%emt 0:00:05] [#]} 13. a3 $146 {[%emt 0:03:04]} ({Predecessor:} 13. a4 b4 14. cxb4 Qb6 15. Nf3 Qxb4 16. Qe2 Qb7 17. a5 Nb8 18. b4 Nc6 19. Ba3 {1-0 (43) Smirin,I (2612)-Iordachescu,V (2589) Chess.com INT 2020}) 13... Qb6 {[%emt 0:08:36]} 14. Qe2 {[%emt 0:13:21]} Ne8 {[%emt 0:00:27]} ({Black should try} 14... e5 $11) 15. Nf3 $14 {[%emt 0:01:35]} Nd6 {[%emt 0:00:55]} 16. Bf4 {[%emt 0:04:43]} Nc4 {[%emt 0:01:41]} 17. h4 {[%emt 0:04:17][%cal Oh4h5]} Rfc8 {[%emt 0:06:43]} 18. h5 {[%emt 0:02:16]} Ra7 {[%emt 0:00:05]} 19. hxg6 {[%emt 0:01:42]} hxg6 {[%emt 0:00:07]} 20. Qc2 {[%emt 0:04:52]} Nf8 {[%emt 0:07:25]} 21. g3 {[%emt 0:04:38][%cal Bg2g3,Bg3g4][%mdl 32]} Nd6 {[%emt 0:18:31]} (21... a5 $14) 22. Kg2 $16 {[%emt 0:02:10]} Nf5 {[%emt 0:01:00][%cal Rf5d4] White is clearly better.} 23. Qd2 {[%emt 0:01:58]} Nd7 {[%emt 0:01:06]} (23... Nd6 $16 24. Qc2 Nd7) 24. g4 {[%emt 0:05:37]} Nd6 {[%emt 0:00:19] Weighted Error Value: White=0.12 (very precise) /Black=0.20 (precise)} 1/2-1/2

[Event "Summer Prague Open-A 2022"]
[Site "Prague"]
[Date "2022.08.11"]
[Round "8.24"]
[White "Shehzad, Shazil"]
[Black "Reshetniak, Vitaliy"]
[Result "1/2-1/2"]
[ECO "B40"]
[WhiteElo "2274"]
[BlackElo "1995"]
[Annotator "TA"]
[PlyCount "72"]
[EventDate "2022.08.05"]
[EventType "swiss"]
[EventCountry "CZE"]
[SourceTitle "playchess.com"]
[Source "ChessBase"]
[SourceQuality "1"]
[TimeControl "40/5400+30:1800+30"]

{[%evp 16,72,0,0,28,31,31,27,40,17,41,39,67,56,52,69,54,51,62,60,59,64,125,87,83,89,108,63,88,7,9,13,84,85,163,166,165,171,162,172,190,159,159,159,165,165,177,134,134,135,142,108,108,0,0,0,0,0,0]} 1. e4 {[%emt 0:00:08]} c5 {[%emt 0:00:10]} 2. Nf3 {[%emt 0:00:06]} e6 {[%emt 0:00:17]} 3. d3 {[%emt 0:00:07]} Nc6 {[%emt 0:00:24]} 4. g3 {[%emt 0:00:04]} d5 {[%emt 0:00:37]} 5. Qe2 {[%emt 0:00:06]} Nf6 {[%emt 0:02:14]} 6. Bg2 {[%emt 0:00:07]} Be7 {[%emt 0:00:19]} 7. O-O {[%emt 0:00:53]} O-O {[%emt 0:05:30]} 8. e5 {[%emt 0:00:19]} Nd7 {[%emt 0:00:12]} 9. c4 {[%emt 0:00:03]} b5 {[%emt 0:02:16] C00: French: Unusual White 2nd moves.} 10. cxb5 {[%emt 0:00:17]} Na5 {[%emt 0:00:10]} 11. Qc2 {[%emt 0:00:05]} a6 {[%emt 0:01:30] White has an edge.} 12. a4 {[%emt 0:00:50]} Bb7 {[%emt 0:02:34]} 13. Na3 {[%emt 0:01:45]} Qb6 {[%emt 0:02:11]} 14. Be3 {[%emt 0:01:23] aiming for b4.} Qd8 {[%emt 0:12:31]} 15. h4 {[%emt 0:02:51][%cal Bh2h4,Bh4h5][%mdl 32] [#]} Qb8 $146 {[%emt 0:01:35]} ({Predecessor:} 15... h6 16. h5 Rc8 17. Bf4 Qb6 18. Rac1 c4 19. Be3 Bc5 20. Bxc5 Nxc5 21. dxc4 Ncb3 {0-1 (42) Glavina,P (2393)-Pichot,A (2625) Chess.com INT 2022}) 16. Bf4 {[%emt 0:10:04]} Rc8 {[%emt 0:01:31]} 17. b3 {[%emt 0:04:02]} Nb6 {[%emt 0:05:32]} 18. Rfb1 {[%emt 0:08:27]} Nd7 {[%emt 0:03:17]} (18... axb5 $1 $14 19. Nxb5 Nd7) 19. h5 {[%emt 0:01:50]} h6 {[%emt 0:05:58]} 20. Qe2 {[%emt 0:03:35]} Qc7 {[%emt 0:04:29]} 21. Nh2 {[%emt 0:06:13]} Qd8 {[%emt 0:08:28]} 22. Bd2 {[%emt 0:03:14]} ({Better is} 22. Qe1 $16) 22... axb5 $11 {[%emt 0:07:54]} 23. axb5 {[%emt 0:04:30]} Qb6 {[%emt 0:03:00]} (23... Nxe5 $1 $11 {remains equal.} 24. Bc3 (24. Qxe5 Bf6 $17) 24... Nd7) 24. Ng4 $16 {[%emt 0:01:39]} Bf8 {[%emt 0:04:08] [#]} (24... Ra7 $16) 25. Qe1 $1 $18 {[%emt 0:01:33]} Ra7 {[%emt 0:00:43] [#]} 26. Nc4 $1 {[%emt 0:04:31][%mdl 512]} Nxc4 {[%emt 0:00:44]} 27. bxc4 {[%emt 0:00:43] And now Ba5 would win.} dxc4 {[%emt 0:00:07]} 28. dxc4 {[%emt 0:03:21] Strongly threatening Ba5.} Bxg2 {[%emt 0:00:41]} 29. Kxg2 {[%emt 0:00:58]} Qb7+ {[%emt 0:00:09]} 30. f3 {[%emt 0:00:38]} Nb6 {[%emt 0:00:23]} 31. Rxa7 {[%emt 0:01:05]} Qxa7 {[%emt 0:00:02]} 32. Ra1 {[%emt 0:01:21] Inhibits Qa2.} Qd7 {[%emt 0:00:18]} 33. Ne3 {White is more active.} Qd3 34. Ba5 {[%emt 0:14:17]} (34. Rc1 $16) 34... Nxc4 $11 {[%emt 0:00:57] The position is equal.} 35. Nxc4 {[%emt 0:00:28]} Qxc4 {[%emt 0:00:05]} 36. b6 {[%emt 0:00:14]} Qa6 {[%emt 0:03:42] Weighted Error Value: White=0.16 (very precise) /Black=0.15 (very precise)} 1/2-1/2

[Event "Summer Prague Open-A 2022"]
[Site "Prague"]
[Date "2022.08.12"]
[Round "9.1"]
[White "Lutsko, Artem"]
[Black "Zamengo, Fulvio"]
[Result "1-0"]
[ECO "A05"]
[WhiteElo "2392"]
[BlackElo "2396"]
[Annotator "TA"]
[PlyCount "141"]
[EventDate "2022.08.05"]
[EventType "swiss"]
[EventCountry "CZE"]
[SourceTitle "playchess.com"]
[Source "ChessBase"]
[SourceQuality "1"]
[TimeControl "40/5400+30:1800+30"]

{[%evp 12,141,-7,-7,0,0,0,-2,16,14,10,9,10,10,10,10,10,10,10,0,28,37,35,21,16,10,12,12,6,32,20,7,20,17,21,0,70,36,51,47,139,138,149,145,152,143,147,141,169,175,236,226,259,259,259,259,255,250,250,191,335,205,194,197,283,264,252,102,125,8,25,0,131,102,102,102,102,103,146,0,168,8,289,276,266,260,256,248,752,709,679,674,641,592,1260,1251,1176,1027,1492,1477,1444,1444,1367,1039,1359,1232,1014,783,724,643,842,624,29964,29965,29960,29963,29970,29971,29972,29971,29972,29972,29978,29979,29975,29976,29981,29982,29982,29981,29980,29978]} 1. Nf3 {[%emt 0:00:02]} Nf6 {[%emt 0:00:27]} 2. g3 {[%emt 0:00:04]} g6 {[%emt 0:00:33]} 3. b3 {[%emt 0:00:05]} d5 {[%emt 0:01:35]} 4. Bb2 {[%emt 0:00:23]} c5 {[%emt 0:02:04]} 5. Bg2 {[%emt 0:06:20]} Bg7 {[%emt 0:00:08]} 6. O-O {[%emt 0:00:46]} O-O {[%emt 0:00:08]} 7. d3 {[%emt 0:00:21][%cal Bd2d3,Bd3d4,Bd4c5][%mdl 32]} Nc6 {[%emt 0:09:11] A05: Réti Opening: 1 Nf3 Nf6.} 8. Ne5 {[%emt 0:00:16]} Nxe5 {[%emt 0:00:13]} 9. Bxe5 {[%emt 0:00:04]} b6 {[%emt 0:00:11] The position is equal.} 10. c4 {[%emt 0:04:22]} Bb7 {[%emt 0:00:08] [#]} 11. d4 $146 {[%emt 0:07:14]} ({Predecessor:} 11. Nc3 e6 12. Qc2 Qd7 13. Qb2 d4 14. Nb1 Bxg2 15. Kxg2 Qc6+ 16. Kg1 Nd7 17. Bxg7 Kxg7 {0-1 (62) Diakonova,E (2157)-Kryakvin,A (1240) Sevastopol 2021}) 11... Qc8 {[%emt 0:07:27]} 12. cxd5 $1 {[%emt 0:04:10]} Nxd5 {[%emt 0:00:15] Hoping for ...f6.} 13. Bxg7 {[%emt 0:01:25]} Kxg7 {[%emt 0:00:08]} 14. Qd2 {[%emt 0:00:18]} Rd8 {[%emt 0:02:41]} 15. dxc5 {[%emt 0:00:04]} Nf6 {[%emt 0:18:51]} 16. Bxb7 {[%emt 0:01:14]} Qxb7 {[%emt 0:00:07]} 17. Qe3 {[%emt 0:05:50]} bxc5 {[%emt 0:00:38]} 18. Qxc5 {[%emt 0:07:31]} Rac8 {[%emt 0:05:57]} 19. Qe3 {[%emt 0:02:29]} Qe4 {[%emt 0:15:24]} 20. Qxe4 {[%emt 0:03:27]} Nxe4 {[%emt 0:00:02]} 21. Re1 {[%emt 0:02:33]} a5 {[%emt 0:10:29]} 22. f3 {[%emt 0:01:55]} Nc3 {[%emt 0:00:07]} 23. Kf1 {[%emt 0:01:42]} Nxb1 {[%emt 0:00:31]} (23... Nb5 $11) 24. Raxb1 $11 {[%emt 0:00:03][%mdl 4096] Endgame KRR-KRR} Rc2 {[%emt 0:01:04]} 25. a4 {[%emt 0:01:15]} Rdd2 {[%emt 0:06:15]} (25... Rd5 $14) 26. Rbd1 $1 $16 {[%emt 0:00:06]} Kf6 {[%emt 0:00:06]} 27. Rxd2 {[%emt 0:00:27]} Rxd2 {[%emt 0:00:07] KR-KR} 28. Rc1 {[%emt 0:00:01]} Rb2 {[%emt 0:00:19]} 29. Rc6+ {[%emt 0:03:10]} e6 {[%emt 0:00:07]} 30. Rb6 {[%emt 0:00:04]} h5 {[%emt 0:00:55]} (30... Rd2 $142 31. Kf2 h5) 31. h4 $18 {[%emt 0:03:31]} g5 {[%emt 0:07:24]} 32. hxg5+ {[%emt 0:01:23]} Kxg5 {[%emt 0:00:07]} 33. Kf2 {[%emt 0:02:48]} Kf5 {[%emt 0:00:43]} 34. Rb5+ {[%emt 0:04:35]} Kg6 {[%emt 0:00:07]} 35. Ke3 {[%emt 0:02:59]} Kf6 {[%emt 0:03:30]} (35... Kg7 $142 36. Kd4 (36. Rxh5 f5 $16) (36. Rxa5 Rxb3+ 37. Kd4 Ra3 $16) 36... f5 37. Rxa5 Rxe2) 36. f4 {[%emt 0:00:40]} (36. Rxa5 Rxb3+ 37. Kd4 Rb2 $16) 36... Kg6 {[%emt 0:00:18]} 37. Kf3 {[%emt 0:02:59]} (37. Rxa5 Rxb3+ 38. Kf2 f6) 37... Rc2 {[%emt 0:00:30]} (37... f6 {was called for.} 38. Ke3 (38. Rxa5 Rxb3+ 39. e3 Ra3 $18) 38... Kg7) 38. Re5 {[%emt 0:01:09]} ({But not} 38. Rg5+ Kh6 39. Rxa5 Rc3+ 40. e3 Rxb3 $18) 38... Rc3+ {[%emt 0:00:33]} 39. Re3 {[%emt 0:00:04]} (39. e3 $18 {is the precise move to win.}) 39... Rc2 {[%emt 0:00:21]} 40. Ke4 {[%emt 0:00:11]} ({Better is} 40. Kg2 $16) 40... Rd2 $1 $11 {[%emt 0:00:07]} 41. Kf3 {[%emt 0:30:44] And now Re5 would win.} Rb2 {[%emt 0:31:45]} (41... Rc2 $1 $11) 42. Rc3 {[%emt 0:00:26]} f6 {[%emt 0:06:31]} 43. e3 {[%emt 0:01:12]} Rb1 {[%emt 0:00:00]} 44. Ke4 {[%emt 0:00:00]} Rb2 {[%emt 0:00:00]} 45. Kf3 {[%emt 0:00:00]} Rb1 $1 {[%emt 0:00:00]} 46. e4 $2 {[%emt 0:00:00]} (46. Rc5 $1 $18) 46... Rh1 $2 {[%emt 0:00:00][%mdl 8192] [#] A mistake that costs the game.} (46... e5 $1 $11 {and Black has nothing to worry.}) 47. Rc6 $1 $18 {[%emt 0:00:00]} Rb1 {[%emt 0:00:00]} 48. Rb6 {[%emt 0:00:00]} (48. Rxe6 $6 Rxb3+ 49. Kg2 Rb2+ 50. Kh3 Kf7 $16) 48... Rb2 {[%emt 0:00:00] [#]} 49. e5 $1 {[%emt 0:00:00]} ({Don't take} 49. Rxe6 $6 Rxb3+ 50. Kg2 Kf7 $16) 49... fxe5 $2 {[%emt 0:00:00]} (49... Kf7 50. Rb7+ Kg6) 50. Rxe6+ {[%emt 0:00:00]} Kf7 {[%emt 0:00:00]} 51. Rxe5 {[%emt 0:00:00]} Rxb3+ {[%emt 0:00:00]} 52. Kg2 {[%emt 0:00:00]} h4 {[%emt 0:00:00]} 53. gxh4 {[%emt 0:00:00]} Rb4 {[%emt 0:00:00]} 54. Rxa5 {[%emt 0:00:00]} Rxf4 {[%emt 0:00:00]} 55. Kg3 {[%emt 0:00:00]} Rc4 {[%emt 0:00:00]} 56. Rf5+ {[%emt 0:00:00]} Kg6 {[%emt 0:00:00]} 57. Rf4 {[%emt 0:00:00]} Rc1 {[%emt 0:00:04]} 58. Kf3 {[%emt 0:00:00]} Re1 {[%emt 0:01:03]} 59. Kf2 {[%emt 0:00:00]} Re5 {[%emt 0:00:07]} 60. Rb4 {[%emt 0:00:00] Black must now prevent Rb5.} Kh7 {[%emt 0:00:57]} 61. Kf3 {[%emt 0:00:00]} Kh6 {[%emt 0:00:17]} 62. Rb5 {[%emt 0:00:00] White mates.} Re1 {[%emt 0:00:11]} 63. a5 {[%emt 0:00:00][%cal Ba4a5,Ba5a6][%mdl 32]} Rf1+ {[%emt 0:00:24]} 64. Ke4 {[%emt 0:00:00]} Rd1 {[%emt 0:00:17]} 65. h5 {[%emt 0:00:00]} Re1+ {[%emt 0:01:05]} 66. Kd4 {[%emt 0:00:00]} Rd1+ {[%emt 0:00:06]} 67. Kc5 {[%emt 0:00:00]} Rf1 {[%emt 0:01:44]} 68. a6 {[%emt 0:00:00]} Rf7 {[%emt 0:00:41]} 69. Ra5 {[%emt 0:00:00]} Rf5+ {[%emt 0:00:19]} 70. Kb4 {[%emt 0:00:00]} Rf4+ {[%emt 0:00:05]} 71. Kc3 {[%emt 0:00:00] Weighted Error Value: White=0.22 (precise) /Black=0.33} 1-0